fUST/lending_fUST_20250820
["ID","MTS","AMOUNT","RATE_DAILY","PERIOD"]
[380302859,1755648644886,-500.0,0.00025206,2]
[380302861,1755648644895,-198.0,0.00025206,2]
[380302863,1755648644905,-824.0,0.00025206,2]
[380302865,1755648644914,-151.0,0.00025224,7]
[380302867,1755648644923,-160.879674,0.00025224,7]
[380302869,1755648644932,-151.0,0.00025224,7]
[380302871,1755648644942,-152.780203,0.00025224,7]
[380302873,1755648644951,-151.0,0.00025224,7]
[380302875,1755648644960,-151.0,0.00025224,7]
[380302877,1755648644970,-151.0,0.00025224,7]
[380302879,1755648644979,-185.497068,0.00025224,7]
[380302881,1755648644988,-185.497068,0.00025224,7]
[380302883,1755648644998,-185.497068,0.00025224,7]
[380302885,1755648645007,-185.497068,0.00025224,7]
[380302887,1755648645017,-151.0,0.00025224,7]
[380302889,1755648645026,-151.0,0.00025224,7]
[380302891,1755648645036,-151.0,0.00025224,7]
[380302893,1755648645045,-263.402029,0.00025224,7]
[380302895,1755648645054,-382.0,0.00025235,2]
[380302897,1755648645064,-480.0,0.00025236,2]
[380302898,1755648645091,-991.84,0.00025236,2]
[380302901,1755648645101,-151.0,0.00025243,7]
[380302902,1755648645110,-151.0,0.00025243,7]
[380302904,1755648645119,-151.0,0.00025243,7]
[380302906,1755648645129,-151.0,0.00025243,7]
[380302908,1755648645138,-151.0,0.00025243,7]
[380302910,1755648645148,-151.0,0.00025243,7]
[380302912,1755648645158,-151.0,0.00025243,7]
[380302914,1755648645168,-151.0,0.00025243,7]
[380302916,1755648645177,-151.0,0.00025243,7]
[380302918,1755648645187,-277.64354,0.00025243,7]
[380302920,1755648645196,-151.0,0.00025243,7]
[380302922,1755648645205,-202.181416,0.00025243,7]
[380302924,1755648645215,-151.0,0.00025243,7]
[380302926,1755648645224,-151.0,0.00025243,7]
[380302928,1755648645234,-151.0,0.00025243,7]
[380302930,1755648645244,-155.339759,0.0002525,15]
[380302931,1755648645253,-4849.77926013,0.00025253,2]
[380302932,1755648645263,-226.030849,0.00025253,7]
[380302933,1755648645273,-151.0,0.00025253,7]
[380302934,1755648645283,-151.0,0.00025253,7]
[380302935,1755648645292,-151.0,0.00025253,7]
[380302936,1755648645302,-151.0,0.00025253,7]
[380302937,1755648645311,-151.0,0.00025253,7]
[380302938,1755648645320,-151.0,0.00025253,7]
[380302939,1755648645329,-163.587686,0.00025253,7]
[380302940,1755648645338,-151.0,0.00025253,7]
[380302941,1755648645348,-151.0,0.00025253,7]
[380302942,1755648645357,-151.0,0.00025253,7]
[380302943,1755648645366,-270.012,0.00025253,7]
[380302944,1755648645375,-151.0,0.00025253,7]
[380302945,1755648645385,-151.0,0.00025253,7]
[380302946,1755648645394,-151.0,0.00025253,7]
[380302947,1755648645403,-151.0,0.00025253,7]
[380302948,1755648645412,-151.0,0.00025253,7]
[380302949,1755648645421,-185.497068,0.00025253,7]
[380302950,1755648645430,-185.497068,0.00025253,7]
[380302951,1755648645439,-185.497068,0.00025253,7]
[380302952,1755648645448,-185.497075,0.00025253,7]
[380302953,1755648645458,-151.0,0.00025253,7]
[380302954,1755648645467,-151.0,0.00025253,7]
[380302955,1755648645477,-151.0,0.00025253,7]
[380302956,1755648645486,-151.0,0.00025253,7]
[380302957,1755648645495,-207.887622,0.00025253,7]
[380302958,1755648645504,-456.916408,0.00025253,7]
[380302959,1755648645514,-456.916408,0.00025253,7]
[380302960,1755648645523,-456.916408,0.00025253,7]
[380302962,1755648645533,-456.916408,0.00025253,7]
[380302963,1755648645543,-189790.44577113,0.00025253,2]
[380302966,1755648645562,-32225.89846462,0.00025253,2]
[380302969,1755648645578,-151.0,0.000248,7]
[380302971,1755648645587,-8964.66118573,0.00025253,2]
[380302973,1755648645598,-961.54334193,0.00025253,2]
[380302997,1755648645820,-843.93972674,0.00021125,2]
[380302999,1755648645829,-215.79176414,0.00021125,2]
[380303001,1755648645838,-151.0,0.000248,7]
[380303003,1755648645847,-151.0,0.000248,7]
[380303005,1755648645856,-151.0,0.000249,7]
[380303007,1755648645865,-151.0,0.000249,7]
[380303009,1755648645874,-480.0,0.00025073,2]
[380303011,1755648645884,-151.0,0.00025253,7]
[380303013,1755648645893,-151.0,0.00025253,7]
[380303015,1755648645902,-33716.51755076,0.00025253,2]
[380303017,1755648645913,-40749.9999997,0.00025253,2]
[380303029,1755648646016,-480.0,0.00021126,2]
[380303031,1755648646026,-166.57769721,0.000214,2]
[380303033,1755648646037,-397.42230279,0.000214,2]
[380303035,1755648646046,-843.93972674,0.00024,7]
[380303037,1755648646055,-480.0,0.00024799,2]
[380303039,1755648646064,-151.0,0.000248,7]
[380303041,1755648646074,-201.797042,0.000248,7]
[380303043,1755648646085,-151.0,0.000249,7]
[380303044,1755648646095,-151.0,0.000249,7]
[380303046,1755648646104,-843.93972674,0.000251,3]
[380303048,1755648646114,-151.0,0.00025253,7]
[380303050,1755648646123,-270.136962,0.00025253,7]
[380303052,1755648646133,-36803.14930419,0.00025253,2]
[380304079,1755648747864,242.334987,0.00013699,2]
[380304080,1755649642109,-867.89243372,0.000189,2]
[380304081,1755649642133,-527.88589307,0.00019077,2]
[380304082,1755649642155,-977.0,0.00019177,2]
[380304083,1755649642178,-300.0,0.00019177,2]
[380304084,1755649642202,-234.23868402,0.00019178,2]
[380304085,1755649642225,-480.0,0.00019178,2]
[380304086,1755649642247,-480.0,0.00019178,2]
[380304087,1755649642268,-480.0,0.00019178,2]
[380304088,1755649642291,-347.74049305,0.00019178,2]
[380304092,1755649800797,240.129578,0.00013699,2]
[380304093,1755649829125,3215.7019508,0.00018301,2]
[380304116,1755649831935,-300.0,0.00019177,2]
[380304117,1755649831947,-132.25950695,0.00019178,2]
[380304118,1755649831958,-480.0,0.00019178,2]
[380304119,1755649831969,-126.25252529,0.00019178,2]
[380304121,1755649831992,-353.74747471,0.00019178,2]
[380304123,1755649832003,-480.0,0.00019178,2]
[380304126,1755649832014,-480.0,0.00019178,2]
[380304129,1755649832024,-480.0,0.00019178,2]
[380304132,1755649832035,-480.0,0.00019178,2]
[380304135,1755649832045,-480.0,0.00019178,2]
[380304137,1755649832055,-480.0,0.00019178,2]
[380304139,1755649832066,-480.0,0.00019178,2]
[380304141,1755649832077,-480.0,0.00019178,2]
[380304142,1755649832087,-480.0,0.00019178,2]
[380304143,1755649832099,-480.0,0.00019178,2]
[380304144,1755649832109,-480.0,0.00019178,2]
[380304145,1755649832120,-480.0,0.00019178,2]
[380304146,1755649832130,-480.0,0.00019178,2]
[380304147,1755649832140,-382.08678492,0.00019178,2]
[380304148,1755649832153,-97.91321508,0.00019178,2]
[380304149,1755649832164,-480.0,0.00019178,2]
[380304150,1755649832174,-480.0,0.00019178,2]
[380304151,1755649832184,-570.23,0.00019178,2]
[380304152,1755649832194,-198.95415516,0.00019178,2]
[380304153,1755649832205,-480.0,0.00019178,2]
[380304154,1755649832216,-480.0,0.00019178,2]
[380304155,1755649832226,-480.0,0.00019178,2]
[380304156,1755649832236,-435.38204011,0.00019178,2]
[380304157,1755649832247,-480.0,0.00019199,2]
[380304158,1755649832258,-480.0,0.00019199,2]
[380304159,1755649832268,-480.0,0.00019199,2]
[380304160,1755649832279,-480.0,0.00019199,2]
[380304161,1755649832289,-480.0,0.00019199,2]
[380304162,1755649832299,-480.0,0.00019199,2]
[380304163,1755649832310,-480.0,0.00019199,2]
[380304164,1755649832320,-450.89900101,0.00019199,2]
[380304165,1755649832331,-278.92380123,0.00019199,2]
[380304240,1755649837826,-138.95836006,0.00019199,2]
[380304242,1755649837836,-480.0,0.00019199,2]
[380304243,1755649838005,-480.0,0.00019199,2]
[380304244,1755649838018,-480.0,0.00019199,2]
[380304245,1755649838028,-480.0,0.00019199,2]
[380304246,1755649838037,-480.0,0.000192,2]
[380304247,1755649838047,-180.66,0.000192,2]
[380304248,1755649838056,-480.0,0.000192,2]
[380304249,1755649838066,-234.85,0.000192,2]
[380304250,1755649838075,-480.0,0.000192,2]
[380304251,1755649838084,-480.0,0.000192,2]
[380304252,1755649838093,-480.0,0.000192,2]
[380304253,1755649838103,-480.0,0.000192,2]
[380304254,1755649838113,-480.0,0.000192,2]
[380304255,1755649838122,-480.0,0.000192,2]
[380304256,1755649838131,-480.0,0.000192,2]
[380304257,1755649838140,-480.0,0.000192,2]
[380304258,1755649838151,-480.0,0.000192,2]
[380304259,1755649838160,-240.23940201,0.000192,2]
[380304260,1755649838169,-480.0,0.000192,2]
[380304261,1755649838178,-480.0,0.000192,2]
[380304262,1755649838188,-480.0,0.000192,2]
[380304263,1755649838197,-480.0,0.000192,2]
[380304264,1755649838206,-354.98293117,0.000192,2]
[380304265,1755649838740,-125.01706883,0.000192,2]
[380304266,1755649838749,-480.0,0.000192,2]
[380304267,1755649838759,-480.0,0.000192,2]
[380304268,1755649838768,-480.0,0.000192,2]
[380304269,1755649838776,-426.62265382,0.000192,2]
[380304270,1755649838788,-53.37734618,0.000192,2]
[380304271,1755649838797,-480.0,0.000192,2]
[380304272,1755649838806,-982.28193579,0.000192,2]
[380304273,1755649838817,-27503.21467901,0.000192,2]
[380304274,1755649838826,-1317.12054402,0.00019352,2]
[380304275,1755649838835,-480.0,0.00019452,2]
[380304276,1755649838845,-480.0,0.00019452,2]
[380304277,1755649838854,-480.0,0.00019452,2]
[380304278,1755649838863,-480.0,0.00019452,2]
[380304279,1755649838872,-523.97468872,0.00019452,2]
[380304280,1755649838881,-480.0,0.00019452,2]
[380304281,1755649838890,-440.0,0.00019452,2]
[380304282,1755649838899,-480.0,0.00019452,2]
[380304283,1755649838909,-480.0,0.00019452,2]
[380304284,1755649838918,-570.23,0.00019452,2]
[380304285,1755649838927,-480.0,0.00019452,2]
[380304286,1755649838936,-480.0,0.00019452,2]
[380304287,1755649838945,-480.0,0.00019452,2]
[380304288,1755649838954,-480.0,0.00019473,2]
[380304289,1755649838963,-480.0,0.00019473,2]
[380304290,1755649838972,-480.0,0.00019473,2]
[380304291,1755649838981,-480.0,0.00019474,2]
[380304292,1755649838990,-480.0,0.00019474,2]
[380304293,1755649838998,-480.0,0.00019474,2]
[380304294,1755649839008,-480.0,0.00019474,2]
[380304295,1755649839017,-480.0,0.00019474,2]
[380304296,1755649839026,-480.0,0.00019474,2]
[380304297,1755649839035,-462.15,0.00019474,2]
[380304298,1755649839044,-480.0,0.00019474,2]
[380304299,1755649839053,-276.18,0.00019474,2]
[380304300,1755649839063,-480.0,0.00019474,2]
[380304301,1755649839072,-480.0,0.00019474,2]
[380304302,1755649839081,-348.89,0.00019474,2]
[380304303,1755649839090,-480.0,0.00019474,2]
[380304304,1755649839101,-480.0,0.00019474,2]
[380304305,1755649839110,-193.66,0.00019474,2]
[380304306,1755649839119,-562.33,0.00019474,2]
[380304307,1755649839129,-480.0,0.00019474,2]
[380304308,1755649839139,-480.0,0.00019474,2]
[380304309,1755649839148,-480.0,0.00019474,2]
[380304310,1755649839158,-300.0,0.00019561,20]
[380304311,1755649839169,-300.0,0.00019561,20]
[380304312,1755649839178,-300.0,0.00019561,20]
[380304313,1755649839188,-300.0,0.00019561,20]
[380304314,1755649839197,-300.0,0.00019561,20]
[380304315,1755649839207,-300.0,0.00019561,20]
[380304316,1755649839216,-300.0,0.00019561,20]
[380304317,1755649839225,-359.53150709,0.00019726,2]
[380304318,1755649839234,-570.23,0.00019726,2]
[380304319,1755649839243,-480.0,0.00019726,2]
[380304320,1755649839252,-480.0,0.00019747,2]
[380304322,1755649839261,-229.71,0.00019748,2]
[380304323,1755649839271,-480.0,0.00019748,2]
[380304325,1755649839280,-469.4,0.00019748,2]
[380304327,1755649839290,-480.0,0.00019748,2]
[380304328,1755649839299,-480.0,0.00019748,2]
[380304329,1755649839309,-599.86,0.00019748,2]
[380304331,1755649839318,-463.38,0.00019748,2]
[380304332,1755649839327,-480.0,0.00019748,2]
[380304333,1755649839336,-480.0,0.00019748,2]
[380304334,1755649839345,-327.94,0.00019748,2]
[380304335,1755649839358,-496.76,0.00019748,2]
[380304336,1755649839367,-158.0,0.00019748,2]
[380304337,1755649839378,-480.0,0.00019748,2]
[380304339,1755649839387,-181.564755,0.00019863,2]
[380304340,1755649839398,-500.0,0.00019999,2]
[380304342,1755649839407,-162.03526697,0.00019999,2]
[380304343,1755649839417,-500.0,0.00019999,2]
[380304344,1755649839429,-488.90817029,0.00019999,2]
[380304345,1755649839438,-906.47026741,0.0002,5]
[380304346,1755649839448,-570.23,0.0002,2]
[380304347,1755649839457,-480.0,0.0002,2]
[380304348,1755649839467,-3175.14810374,0.0002,2]
[380304349,1755649839476,-30649.4423574,0.0002,2]
[380304351,1755649839485,-480.0,0.00020021,2]
[380304352,1755649839495,-480.0,0.00020022,2]
[380304353,1755649839505,-486.46,0.00020022,2]
[380304354,1755649839516,-551.54,0.00020022,2]
[380304355,1755649839526,-480.0,0.00020022,2]
[380304356,1755649839535,-480.0,0.00020022,2]
[380304357,1755649839545,-240.129578,0.00020187,2]
[380304358,1755649839554,-500.0,0.00020227,2]
[380304359,1755649839563,-570.23,0.00020273,2]
[380304360,1755649839573,-480.0,0.00020273,2]
[380304361,1755649839583,-480.0,0.00020295,2]
[380304362,1755649839592,-480.0,0.00020296,2]
[380304363,1755649839603,-480.0,0.00020296,2]
[380304364,1755649839613,-472.1751104,0.000203,2]
[380304365,1755649839622,-250.0,0.00020312,2]
[380304366,1755649839631,-215.98149753,0.00020312,2]
[380304367,1755649839640,-602.93108077,0.00020312,2]
[380304368,1755649839650,-500.0,0.00020312,2]
[380304369,1755649839659,-503.97856529,0.00020312,2]
[380304370,1755649839669,-500.0,0.00020312,2]
[380304371,1755649839679,-500.0,0.00020312,2]
[380304372,1755649839688,-500.0,0.00020382,2]
[380304373,1755649839698,-218.33475465,0.00020406,2]
[380304374,1755649839707,-282.13211643,0.00020432,2]
[380304375,1755649839716,-1317.12054401,0.00020435,2]
[380304376,1755649839725,-500.0,0.00020441,2]
[380304378,1755649839735,-570.23,0.00020547,2]
[380304379,1755649839744,-480.0,0.00020547,2]
[380304380,1755649839753,-503.00964669,0.00020569,2]
[380304381,1755649839762,-500.0,0.00020569,2]
[380304382,1755649839772,-500.0,0.00020569,2]
[380304384,1755649839781,-480.0,0.00020569,2]
[380304386,1755649839790,-480.0,0.0002057,2]
[380304388,1755649839799,-480.0,0.0002057,2]
[380304389,1755649839808,-500.0,0.0002062,2]
[380304391,1755649839817,-500.0,0.0002062,2]
[380304393,1755649839826,-500.0,0.00020775,2]
[380304394,1755649839836,-480.0,0.00020775,2]
[380304395,1755649839845,-480.0,0.00020775,2]
[380304396,1755649839857,-480.0,0.00020775,2]
[380304397,1755649839866,-480.0,0.00020775,2]
[380304398,1755649839875,-480.0,0.00020775,2]
[380304399,1755649839884,-480.0,0.00020775,2]
[380304400,1755649839894,-480.0,0.00020775,2]
[380304401,1755649839903,-480.0,0.00020775,2]
[380304402,1755649839912,-421.95116986,0.00020775,2]
[380304403,1755649839921,-480.0,0.00020775,2]
[380304404,1755649839931,-480.0,0.00020775,2]
[380304405,1755649839940,-480.0,0.00020775,2]
[380304406,1755649839950,-480.0,0.00020775,2]
[380304407,1755649839959,-480.0,0.00020775,2]
[380304408,1755649839968,-480.0,0.00020775,2]
[380304409,1755649839977,-480.0,0.00020775,2]
[380304410,1755649839986,-480.0,0.00020775,2]
[380304411,1755649839994,-480.0,0.00020775,2]
[380304412,1755649840003,-480.0,0.00020775,2]
[380304413,1755649840012,-480.0,0.00020775,2]
[380304414,1755649840022,-480.0,0.00020775,2]
[380304415,1755649840032,-480.0,0.00020775,2]
[380304416,1755649840042,-480.0,0.00020775,2]
[380304417,1755649840051,-480.0,0.00020775,2]
[380304418,1755649840061,-480.0,0.00020775,2]
[380304419,1755649840071,-480.0,0.00020775,2]
[380304420,1755649840082,-480.0,0.00020775,2]
[380304421,1755649840091,-480.0,0.00020775,2]
[380304422,1755649840102,-480.0,0.00020775,2]
[380304423,1755649840111,-480.0,0.00020775,2]
[380304424,1755649840120,-480.0,0.00020775,2]
[380304425,1755649840130,-480.0,0.00020775,2]
[380304426,1755649840139,-480.0,0.00020775,2]
[380304427,1755649840149,-480.0,0.00020775,2]
[380304428,1755649840158,-480.0,0.00020775,2]
[380304429,1755649840167,-482.34662823,0.00020775,2]
[380304430,1755649840177,-480.0,0.00020775,2]
[380304431,1755649840187,-480.0,0.00020775,2]
[380304432,1755649840197,-480.59084869,0.00020775,2]
[380304433,1755649840206,-626.85790148,0.00020775,2]
[380304434,1755649840216,-480.0,0.00020775,2]
[380304435,1755649840225,-440.80135216,0.00020775,2]
[380304436,1755649840234,-480.0,0.00020775,2]
[380304437,1755649840243,-480.0,0.00020775,2]
[380304438,1755649840253,-480.0,0.00020775,2]
[380304439,1755649840263,-480.0,0.00020775,2]
[380304440,1755649840272,-480.0,0.00020775,2]
[380304441,1755649840282,-480.0,0.00020775,2]
[380304442,1755649840292,-480.0,0.00020775,2]
[380304443,1755649840302,-1243.58,0.00020775,2]
[380304444,1755649840312,-480.0,0.00020775,2]
[380304445,1755649840322,-480.0,0.00020775,2]
[380304446,1755649840332,-480.0,0.00020775,2]
[380304447,1755649840341,-480.0,0.00020775,2]
[380304448,1755649840352,-8087.1237282,0.00020775,2]
[380304449,1755649840363,-570.23,0.00020821,2]
[380304450,1755649840372,-480.0,0.00020821,2]
[380304451,1755649840382,-480.0,0.00020843,2]
[380304452,1755649840392,-169.42,0.00020844,2]
[380304453,1755649840401,-480.0,0.00020844,2]
[380304454,1755649840413,-500.0,0.0002086,2]
[380304455,1755649840425,-420.0,0.00020899,2]
[380304456,1755649840444,-12685.85563623,0.00020966,2]
[380304457,1755649840454,-160.0,0.00020985,2]
[380304458,1755649840464,-160.0,0.00021,2]
[380304459,1755649840473,-843.93972674,0.00021,2]
[380304460,1755649840482,-417.15472785,0.00021,2]
[380304461,1755649840492,-216.8835046,0.00021,2]
[380304462,1755649840501,-160.0,0.00021,2]
[380304463,1755649840511,-375.88899365,0.00021,2]
[380304464,1755649840521,-480.0,0.00021049,2]
[380304465,1755649840531,-480.0,0.00021049,2]
[380304466,1755649840540,-480.0,0.00021049,2]
[380304467,1755649840549,-480.0,0.00021049,2]
[380304468,1755649840559,-1243.58,0.00021049,2]
[380304469,1755649840568,-480.0,0.00021049,2]
[380304470,1755649840578,-311.09,0.00021049,2]
[380304471,1755649840587,-480.0,0.00021049,2]
[380304472,1755649840597,-480.0,0.00021059,2]
[380304473,1755649840607,-570.23,0.00021095,2]
[380304474,1755649840617,-480.0,0.00021095,2]
[380304475,1755649840626,-1000.0,0.00021117,2]
[380304476,1755649840636,-355.30030621,0.00021117,2]
[380304477,1755649840645,-480.0,0.00021118,2]
[380304478,1755649840655,-232.21311493,0.00021124,2]
[380304479,1755649840664,-480.0,0.00021126,2]
[380304480,1755649840674,-486.71164846,0.00021126,2]
[380304481,1755649840683,-480.0,0.00021126,2]
[380304482,1755649840692,-175.08380057,0.00021126,2]
[380304483,1755649840702,-480.0,0.00021126,2]
[380304484,1755649840711,-235.35851952,0.00021126,2]
[380304485,1755649840720,-480.0,0.00021126,2]
[380304486,1755649840729,-480.0,0.00021126,2]
[380304487,1755649840739,-480.0,0.00021126,2]
[380304488,1755649840749,-480.0,0.00021126,2]
[380304489,1755649840758,-480.0,0.00021126,2]
[380304490,1755649840768,-480.0,0.00021126,2]
[380304491,1755649840778,-480.0,0.00021126,2]
[380304492,1755649840787,-10600.52246766,0.000212,30]
[380304493,1755649840797,-12685.85563623,0.000212,30]
[380304494,1755649840807,-417.15472785,0.000212,30]
[380304495,1755649840816,-480.0,0.00021323,2]
[380304496,1755649840825,-153.88,0.00021323,2]
[380304497,1755649840835,-363.12,0.00021323,2]
[380304498,1755649840845,-480.0,0.00021323,2]
[380304499,1755649840856,-1243.58,0.00021323,2]
[380304500,1755649840866,-480.0,0.00021323,2]
[380304501,1755649840875,-480.0,0.00021323,2]
[380304502,1755649840884,-570.23,0.00021369,2]
[380304503,1755649840893,-480.0,0.00021369,2]
[380304504,1755649840903,-480.0,0.00021392,2]
[380304505,1755649840912,-480.0,0.000214,2]
[380304506,1755649840921,-9444.22848128,0.000215,2]
[380304507,1755649840930,-1317.12054401,0.00021518,2]
[380304508,1755649840939,-260.0,0.00021533,2]
[380304509,1755649840947,-600.0,0.00021548,20]
[380304510,1755649840956,-369.27573417,0.00021596,2]
[380304511,1755649840965,-480.0,0.00021596,2]
[380304512,1755649840974,-1243.58,0.00021596,2]
[380304513,1755649840983,-480.0,0.00021596,2]
[380304514,1755649840993,-480.0,0.00021596,2]
[380304515,1755649841002,-570.23,0.00021643,2]
[380304516,1755649841011,-480.0,0.00021643,2]
[380304517,1755649841020,-480.0,0.00021666,2]
[380304518,1755649841029,-480.0,0.0002187,2]
[380304519,1755649841039,-1243.58,0.0002187,2]
[380304520,1755649841048,-576.92,0.0002187,2]
[380304521,1755649841057,-570.23,0.00021917,2]
[380304522,1755649841066,-480.0,0.00021917,2]
[380304523,1755649841075,-1329.8162707,0.00021918,7]
[380304524,1755649841084,-521.88735864,0.0002194,2]
[380304525,1755649841095,-1784.27,0.00022,7]
[380304526,1755649841106,-172.0,0.00022,2]
[380304527,1755649841115,-360.0,0.00022081,2]
[380304528,1755649841125,-480.0,0.00022144,2]
[380304529,1755649841134,-1243.58,0.00022144,2]
[380304530,1755649841144,-570.23,0.00022191,2]
[380304531,1755649841153,-480.0,0.00022191,2]
[380304532,1755649841163,-176.69951069,0.000222,69]
[380304533,1755649841172,-480.0,0.00022418,2]
[380304534,1755649841182,-1243.58,0.00022418,2]
[380304535,1755649841301,-570.23,0.00022465,2]
[380304536,1755649841312,-480.0,0.00022465,2]
[380304537,1755649841321,-3000.0,0.00022482,3]
[380304538,1755649841331,-13093.35,0.000225,7]
[380304539,1755649841340,-8852.34062801,0.000225,7]
[380304540,1755649841349,-5303.18,0.000225,7]
[380304541,1755649841360,-160.0,0.000225,7]
[380304542,1755649841370,-375.88899365,0.000225,7]
[380304543,1755649841380,-528.6845513,0.000225,7]
[380304544,1755649841390,-417.15472785,0.000225,7]
[380304545,1755649841400,-415.06835365,0.00022589,2]
[380304546,1755649841409,-456.32319939,0.00022589,2]
[380304547,1755649841421,-1317.12054401,0.00022601,2]
[380304548,1755649841431,-460.0,0.00022629,2]
[380304549,1755649841441,-2711.94558187,0.00022639,2]
[380304550,1755649841451,-4000.0,0.00022689,3]
[380304551,1755649841462,-480.0,0.00022692,2]
[380304552,1755649841472,-1243.58,0.00022692,2]
[380304553,1755649841481,-570.23,0.00022739,2]
[380304554,1755649841491,-480.0,0.00022739,2]
[380304555,1755649841501,-587.0,0.00022776,2]
[380304556,1755649841512,-12685.85563623,0.00022848,3]
[380304557,1755649841521,-4000.0,0.00022848,3]
[380304558,1755649841531,-160.0,0.00022848,3]
[380304559,1755649841540,-375.88899365,0.00022848,3]
[380304560,1755649841551,-528.6845513,0.00022848,3]
[380304561,1755649841561,-417.15472785,0.00022848,3]
[380304562,1755649841571,-480.0,0.00022966,2]
[380304563,1755649841582,-1243.58,0.00022966,2]
[380304564,1755649841593,-5000.0,0.00023,2]
[380304565,1755649841603,-843.93972674,0.00023,3]
[380304566,1755649841613,-160.0,0.00023,3]
[380304567,1755649841624,-160.0,0.00023,3]
[380304568,1755649841634,-216.8835046,0.00023,3]
[380304569,1755649841643,-160.0,0.00023,2]
[380304570,1755649841653,-232.21311493,0.00023,3]
[380304571,1755649841663,-570.23,0.00023013,2]
[380304572,1755649841673,-480.0,0.00023013,2]
[380304573,1755649841683,-4000.0,0.00023046,3]
[380304574,1755649841692,-5000.0,0.00023121,3]
[380304575,1755649841702,-2000.0,0.00023168,3]
[380304576,1755649841711,-560.0,0.00023177,2]
[380304577,1755649841721,-2608.95835778,0.0002321,2]
[380304578,1755649841730,-5000.0,0.00023228,3]
[380304579,1755649841740,-480.0,0.0002324,2]
[380304580,1755649841749,-1243.58,0.0002324,2]
[380304581,1755649841759,-2711.94558185,0.00023244,2]
[380304582,1755649841768,-570.23,0.00023287,2]
[380304583,1755649841778,-480.0,0.00023287,2]
[380304584,1755649841788,-572.09703653,0.00023309,2]
[380304585,1755649841798,-12685.85563623,0.0002331,10]
[380304586,1755649841808,-375.88899365,0.0002331,10]
[380304587,1755649841818,-528.6845513,0.0002331,10]
[380304588,1755649841828,-417.15472785,0.0002331,10]
[380304589,1755649841838,-3000.0,0.00023321,4]
[380304590,1755649841847,-1825.29279757,0.00023423,2]
[380304591,1755649841859,-17842.522448,0.00023465,2]
[380304592,1755649841868,-153.80262498,0.00023465,2]
[380304593,1755649841878,-151.0,0.00023465,2]
[380304594,1755649841888,-151.0,0.00023465,2]
[380304595,1755649841898,-265.61602389,0.00023465,2]
[380304596,1755649841908,-171.47960803,0.000235,2]
[380304597,1755649841917,-1000.0,0.000235,2]
[380304598,1755649841927,-480.0,0.00023514,2]
[380304599,1755649841938,-1243.58,0.00023514,2]
[380304600,1755649841947,-2760.17525376,0.00023561,7]
[380304601,1755649841957,-570.23,0.00023561,2]
[380304602,1755649841966,-480.0,0.00023561,2]
[380304603,1755649841976,-500.0,0.00023573,2]
[380304604,1755649841986,-500.0,0.00023573,2]
[380304605,1755649841995,-500.0,0.00023573,2]
[380304606,1755649842005,-500.0,0.00023573,2]
[380304607,1755649842015,-500.0,0.00023573,2]